fUST/lending_fUST_20250719
["ID","MTS","AMOUNT","RATE_DAILY","PERIOD"]
[373221802,1752911452975,-151.0,0.00020299,2]
[373221803,1752911452985,-151.0,0.00020299,2]
[373221804,1752911452994,-151.0,0.00020299,2]
[373221805,1752911453007,-151.0,0.00020299,2]
[373221806,1752911453016,-151.0,0.00020299,2]
[373221807,1752911453026,-151.0,0.00020299,2]
[373221808,1752911453036,-151.0,0.00020299,2]
[373221809,1752911453046,-151.0,0.00020299,2]
[373221810,1752911453056,-151.0,0.00020299,2]
[373221811,1752911453065,-151.0,0.00020299,2]
[373221812,1752911453076,-151.0,0.00020299,2]
[373221813,1752911453086,-151.0,0.00020299,2]
[373221814,1752911453096,-151.0,0.00020299,2]
[373221815,1752911453105,-151.0,0.00020299,2]
[373221816,1752911453114,-151.0,0.00020299,2]
[373221817,1752911453124,-151.0,0.00020299,2]
[373221818,1752911453133,-151.0,0.00020299,2]
[373221819,1752911453143,-151.0,0.00020299,2]
[373221820,1752911453153,-25000.0,0.00020299,2]
[373221821,1752911453162,-716.45673598,0.00020299,2]
[373221822,1752911453172,-151.0,0.00020299,2]
[373221823,1752911453182,-155.697509,0.00020299,2]
[373221824,1752911453191,-151.0,0.00020299,2]
[373221825,1752911453202,-151.0,0.00020299,2]
[373221826,1752911453212,-151.0,0.00020299,2]
[373221827,1752911453222,-151.0,0.00020299,2]
[373221828,1752911453232,-151.720549,0.00020299,2]
[373221829,1752911453242,-151.404277,0.00020299,2]
[373221830,1752911453251,-151.0,0.00020299,2]
[373221831,1752911453261,-151.0,0.00020299,2]
[373221832,1752911453272,-151.0,0.00020299,2]
[373221833,1752911453283,-151.0,0.00020299,2]
[373221834,1752911453293,-151.0,0.00020299,2]
[373221835,1752911453303,-4841.51248947,0.00020314,3]
[373221836,1752911453312,-3942.302754,0.00020354,2]
[373221837,1752911453322,-305.40284297,0.00020409,2]
[373221838,1752911453332,-1993.92,0.00020433,2]
[373221839,1752911453342,-196.64293205,0.00020433,2]
[373221840,1752911453352,-1236.73,0.00020433,2]
[373221841,1752911453362,-1305.08,0.00020433,2]
[373221842,1752911453371,-475.64,0.00020433,2]
[373221843,1752911453381,-460.0,0.00020433,2]
[373221844,1752911453391,-460.0,0.00020433,2]
[373221845,1752911453401,-523.1,0.00020433,2]
[373221846,1752911453411,-460.0,0.00020433,2]
[373221847,1752911453421,-460.0,0.00020433,2]
[373221848,1752911453430,-460.0,0.00020433,2]
[373221849,1752911453440,-133.4738677,0.00020433,2]
[373221850,1752911501951,401.82778373,0.00021918,120]
[373221851,1752911568064,24900.0,0.00015896,2]
[373221853,1752911676162,385.065649,0.00013699,2]
[373221854,1752911748041,444.07177233,0.00016496,2]
[373221855,1752911825046,10011.95001,0.00015665,2]
[373221857,1752911953336,388.56280078,0.00016496,2]
[373221859,1752912158592,339.9924507,0.00016494,2]
[373221860,1752912290564,172.6,0.00015165,2]
[373221861,1752912291057,172.6,0.00015165,2]
[373221862,1752912291429,172.6,0.00015165,2]
[373221863,1752912363907,297.49339431,0.00016494,2]
[373221867,1752912569091,260.30672003,0.00016493,2]
[373221868,1752912625196,24900.0,0.00015596,2]
[373221877,1752912632942,-1200.0,0.00016591,2]
[373221878,1752912632952,-256.0,0.00016591,2]
[373221879,1752912632962,-300.0,0.00016591,2]
[373221880,1752912632971,-300.0,0.00016591,2]
[373221881,1752912632981,-240.0,0.00016591,2]
[373221882,1752912632991,-1200.0,0.00016592,2]
[373221883,1752912633000,-460.0,0.00016592,2]
[373221884,1752912633010,-460.0,0.00016592,2]
[373221885,1752912633019,-587.22400294,0.00016592,2]
[373221886,1752912633028,-460.0,0.00016593,2]
[373221887,1752912633038,-460.0,0.00016593,2]
[373221888,1752912633047,-102.3561666,0.00016593,2]
[373221889,1752912633059,-357.6438334,0.00016593,2]
[373221890,1752912633069,-1856.87,0.00016593,2]
[373221891,1752912633078,-524.87,0.00016593,2]
[373221892,1752912633088,-460.0,0.00016593,2]
[373221893,1752912633098,-460.0,0.00016593,2]
[373221894,1752912633108,-460.0,0.00016593,2]
[373221895,1752912633118,-1128.74,0.00016593,2]
[373221896,1752912633127,-1784.08,0.00016593,2]
[373221897,1752912633137,-460.0,0.00016593,2]
[373221898,1752912633146,-460.0,0.00016593,2]
[373221899,1752912633156,-535.41929037,0.00016593,2]
[373221900,1752912633165,-27.55049187,0.00016593,2]
[373221901,1752912633177,-432.44950813,0.00016593,2]
[373221902,1752912633187,-460.0,0.00016593,2]
[373221903,1752912633198,-1218.46,0.00016593,2]
[373221904,1752912633208,-460.0,0.00016593,2]
[373221905,1752912633218,-460.0,0.00016593,2]
[373221906,1752912633227,-463.18,0.00016593,2]
[373221907,1752912633237,-460.0,0.00016593,2]
[373221908,1752912633246,-460.0,0.00016593,2]
[373221909,1752912633255,-460.0,0.00016593,2]
[373221910,1752912633265,-460.0,0.00016593,2]
[373221911,1752912633274,-542.18,0.00016593,2]
[373221912,1752912633284,-460.0,0.00016593,2]
[373221913,1752912633294,-460.0,0.00016593,2]
[373221914,1752912633304,-460.0,0.00016593,2]
[373221915,1752912633314,-460.0,0.00016593,2]
[373221916,1752912633324,-460.0,0.00016593,2]
[373221917,1752912633337,-460.0,0.00016593,2]
[373221918,1752912633347,-460.0,0.00016593,2]
[373221919,1752912633356,-1453.91,0.00016593,2]
[373221920,1752912633366,-460.0,0.00016593,2]
[373221921,1752912633376,-3990.44,0.00016593,2]
[373221922,1752912633385,-460.0,0.00016593,2]
[373221923,1752912633395,-460.0,0.00016593,2]
[373221924,1752912633404,-743.31,0.00016593,2]
[373221925,1752912633414,-460.0,0.00016593,2]
[373221926,1752912633423,-460.0,0.00016593,2]
[373221927,1752912633433,-460.0,0.00016593,2]
[373221928,1752912633445,-460.0,0.00016593,2]
[373221929,1752912633454,-460.0,0.00016593,2]
[373221930,1752912633464,-1812.36,0.00016593,2]
[373221931,1752912633474,-460.0,0.00016594,2]
[373221932,1752912633483,-460.0,0.00016594,2]
[373221933,1752912633494,-460.0,0.00016594,2]
[373221934,1752912633504,-460.0,0.00016594,2]
[373221935,1752912633514,-460.0,0.00016594,2]
[373221936,1752912633523,-460.0,0.00016594,2]
[373221937,1752912633533,-8.02092936,0.00016594,2]
[373221938,1752912633545,-451.97907064,0.00016594,2]
[373221939,1752912633555,-247.81113643,0.00016594,2]
[373221940,1752912633567,-212.18886357,0.00016594,2]
[373221941,1752912633577,-80.17567455,0.00016594,2]
[373221942,1752912633589,-379.82432545,0.00016594,2]
[373221943,1752912633599,-49.31567455,0.00016594,2]
[373221944,1752912633632,-410.68432545,0.00016594,2]
[373221945,1752912633642,-460.0,0.00016594,2]
[373221946,1752912633652,-460.0,0.00016594,2]
[373221947,1752912633661,-460.0,0.00016594,2]
[373221948,1752912633671,-460.0,0.00016594,2]
[373221949,1752912633682,-460.54510476,0.00016594,2]
[373221950,1752912633698,-460.0,0.00016594,2]
[373221951,1752912633708,-460.0,0.00016594,2]
[373221952,1752912633719,-48.47995946,0.00016594,2]
[373221962,1752912638945,-2422.91,0.00016593,2]
[373221963,1752912638956,-2142.1,0.00016593,2]
[373221964,1752912638965,-9700.0,0.00016594,2]
[373221965,1752912638974,-411.52004054,0.00016594,2]
[373221966,1752912638984,-460.0,0.00016594,2]
[373221967,1752912638994,-460.0,0.00016594,2]
[373221968,1752912639003,-460.0,0.00016594,2]
[373221969,1752912639013,-460.0,0.00016594,2]
[373221970,1752912639023,-460.0,0.00016594,2]
[373221971,1752912639033,-460.0,0.00016594,2]
[373221972,1752912639044,-460.0,0.00016594,2]
[373221973,1752912639055,-460.0,0.00016594,2]
[373221974,1752912639065,-460.0,0.00016594,2]
[373221975,1752912639074,-460.0,0.00016594,2]
[373221976,1752912639084,-460.0,0.00016594,2]
[373221977,1752912639094,-460.0,0.00016594,2]
[373221978,1752912639103,-460.0,0.00016594,2]
[373221979,1752912639112,-460.0,0.00016594,2]
[373221980,1752912639122,-460.0,0.00016594,2]
[373221981,1752912639132,-460.0,0.00016594,2]
[373221982,1752912639142,-460.0,0.00016594,2]
[373221983,1752912639152,-460.0,0.00016594,2]
[373221984,1752912639163,-460.0,0.00016594,2]
[373221985,1752912639173,-460.0,0.00016594,2]
[373221986,1752912639182,-460.0,0.00016594,2]
[373221987,1752912639192,-460.0,0.00016594,2]
[373221988,1752912639203,-460.0,0.00016594,2]
[373221989,1752912639213,-460.0,0.00016594,2]
[373221990,1752912639222,-460.0,0.00016594,2]
[373221991,1752912639231,-460.0,0.00016594,2]
[373221992,1752912639241,-460.0,0.00016594,2]
[373221993,1752912639251,-460.0,0.00016594,2]
[373221994,1752912639261,-460.0,0.00016594,2]
[373221995,1752912639270,-460.0,0.00016594,2]
[373221996,1752912639280,-460.0,0.00016594,2]
[373221997,1752912639290,-460.0,0.00016594,2]
[373221998,1752912639299,-460.0,0.00016594,2]
[373221999,1752912639309,-460.0,0.00016594,2]
[373222000,1752912639319,-460.0,0.00016594,2]
[373222001,1752912639328,-460.0,0.00016594,2]
[373222002,1752912639339,-460.0,0.00016594,2]
[373222003,1752912639348,-169.40151226,0.00016594,2]
[373222004,1752912639486,-460.0,0.00016594,2]
[373222005,1752912639497,-460.0,0.00016594,2]
[373222006,1752912639507,-590.11139795,0.00016594,2]
[373222007,1752912639517,-460.0,0.00016594,2]
[373222008,1752912639527,-460.0,0.00016594,2]
[373222009,1752912639536,-379.40167366,0.00016594,2]
[373222010,1752912639546,-460.0,0.00016594,2]
[373222011,1752912639556,-460.0,0.00016594,2]
[373222012,1752912639566,-460.0,0.00016594,2]
[373222013,1752912639576,-769.57,0.00016594,2]
[373222014,1752912639586,-460.0,0.00016594,2]
[373222015,1752912639596,-247.78201409,0.00016594,2]
[373222016,1752912639606,-460.0,0.00016594,2]
[373222017,1752912639617,-460.0,0.00016594,2]
[373222018,1752912639627,-460.0,0.00016594,2]
[373222019,1752912639636,-460.98859306,0.00016594,2]
[373222020,1752912639646,-460.0,0.00016594,2]
[373222021,1752912639656,-460.0,0.00016594,2]
[373222022,1752912639666,-460.0,0.00016594,2]
[373222023,1752912639677,-460.0,0.00016594,2]
[373222024,1752912639698,-575.82,0.00016594,2]
[373222025,1752912639720,-460.0,0.00016594,2]
[373222026,1752912639732,-460.0,0.00016594,2]
[373222027,1752912639742,-460.0,0.00016594,2]
[373222028,1752912639751,-460.0,0.00016594,2]
[373222029,1752912639761,-1093.29,0.00016594,2]
[373222030,1752912639770,-460.0,0.00016594,2]
[373222031,1752912639780,-460.0,0.00016594,2]
[373222032,1752912639790,-460.0,0.00016594,2]
[373222033,1752912639799,-460.0,0.00016594,2]
[373222034,1752912639809,-240.52609319,0.00016594,2]
[373222035,1752912639820,-460.0,0.00016594,2]
[373222036,1752912639830,-460.0,0.00016594,2]
[373222037,1752912639839,-460.0,0.00016594,2]
[373222038,1752912639849,-1411.72,0.00016594,2]
[373222039,1752912639859,-460.0,0.00016594,2]
[373222040,1752912639868,-460.0,0.00016594,2]
[373222041,1752912639878,-460.0,0.00016594,2]
[373222042,1752912639887,-460.0,0.00016594,2]
[373222043,1752912639897,-460.0,0.00016594,2]
[373222044,1752912639907,-905.72,0.00016594,2]
[373222045,1752912639916,-460.0,0.00016594,2]
[373222046,1752912639925,-460.0,0.00016594,2]
[373222047,1752912639935,-460.0,0.00016594,2]
[373222048,1752912639944,-460.0,0.00016594,2]
[373222049,1752912639954,-460.0,0.00016594,2]
[373222050,1752912639963,-460.0,0.00016594,2]
[373222051,1752912639974,-460.0,0.00016594,2]
[373222052,1752912639984,-460.0,0.00016594,2]
[373222053,1752912639993,-460.0,0.00016594,2]
[373222054,1752912640003,-743.82,0.00016594,2]
[373222055,1752912640012,-954.84,0.00016594,2]
[373222056,1752912640022,-497.50175411,0.00016594,2]
[373222057,1752912640032,-460.0,0.00016594,2]
[373222058,1752912640041,-550.48,0.00016594,2]
[373222059,1752912640051,-460.0,0.00016594,2]
[373222060,1752912640060,-460.0,0.00016594,2]
[373222061,1752912640070,-460.0,0.00016594,2]
[373222062,1752912640079,-460.0,0.00016594,2]
[373222063,1752912640089,-444.14886663,0.00016594,2]
[373222064,1752912640099,-460.0,0.00016595,2]
[373222065,1752912640108,-460.0,0.00016595,2]
[373222066,1752912640117,-463.67626189,0.00016595,2]
[373222067,1752912640127,-460.0,0.00016595,2]
[373222068,1752912640137,-460.0,0.00016595,2]
[373222069,1752912640147,-460.0,0.00016595,2]
[373222070,1752912640157,-460.0,0.00016595,2]
[373222071,1752912640167,-460.0,0.00016595,2]
[373222072,1752912640177,-460.0,0.00016595,2]
[373222073,1752912640186,-460.0,0.00016595,2]
[373222074,1752912640196,-460.0,0.00016595,2]
[373222075,1752912640206,-460.0,0.00016595,2]
[373222076,1752912640215,-460.0,0.00016595,2]
[373222077,1752912640225,-460.0,0.00016595,2]
[373222078,1752912640235,-460.0,0.00016595,2]
[373222079,1752912640244,-460.0,0.00016595,2]
[373222080,1752912640255,-460.0,0.00016595,2]
[373222081,1752912640265,-368.44174212,0.00016596,2]
[373222082,1752912640274,-460.0,0.00016596,2]
[373222083,1752912640283,-460.0,0.00016596,2]
[373222084,1752912640293,-460.0,0.00016596,2]
[373222085,1752912640303,-460.0,0.00016596,2]
[373222086,1752912640312,-472.98111678,0.00016596,2]
[373222087,1752912640322,-460.0,0.00016596,2]
[373222088,1752912640332,-460.0,0.00016596,2]
[373222089,1752912640342,-460.0,0.00016596,2]
[373222090,1752912640352,-462.64411128,0.00016596,2]
[373222091,1752912640362,-460.0,0.00016596,2]
[373222092,1752912640371,-460.0,0.00016596,2]
[373222093,1752912640381,-460.0,0.00016596,2]
[373222094,1752912640391,-460.0,0.00016596,2]
[373222095,1752912640400,-460.0,0.00016596,2]
[373222096,1752912640410,-460.0,0.00016596,2]
[373222097,1752912640419,-460.0,0.00016596,2]
[373222098,1752912640429,-460.0,0.00016596,2]
[373222099,1752912640438,-523.68,0.00016596,2]
[373222100,1752912640448,-460.0,0.00016596,2]
[373222101,1752912640458,-460.0,0.00016596,2]
[373222102,1752912640467,-460.0,0.00016596,2]
[373222103,1752912640477,-460.0,0.00016596,2]
[373222104,1752912640487,-460.0,0.00016597,2]
[373222105,1752912640496,-460.0,0.00016597,2]
[373222106,1752912640506,-460.0,0.00016597,2]
[373222107,1752912640516,-500.0,0.00016597,2]
[373222108,1752912640526,-460.0,0.00016597,2]
[373222109,1752912640536,-460.0,0.00016597,2]
[373222110,1752912640546,-460.0,0.00016597,2]
[373222112,1752912640556,-460.0,0.00016597,2]
[373222114,1752912640566,-460.0,0.00016597,2]
[373222115,1752912640575,-460.0,0.00016597,2]
[373222116,1752912640585,-460.0,0.00016597,2]
[373222117,1752912640594,-460.0,0.00016597,2]
[373222118,1752912640604,-460.0,0.00016597,2]
[373222119,1752912640613,-460.0,0.00016598,2]
[373222120,1752912640623,-151.38205073,0.00016606,2]
[373222121,1752912640632,-151.0,0.00016606,2]
[373222122,1752912640641,-151.56803976,0.00016606,2]
[373222123,1752912640650,-151.41970091,0.00016606,2]
[373222124,1752912640659,-151.55248288,0.00016606,2]
[373222125,1752912640669,-500.0,0.00016606,2]
[373222126,1752912640679,-151.0,0.00016606,2]
[373222127,1752912640688,-151.0,0.00016606,2]
[373222128,1752912640701,-151.0,0.00016606,2]
[373222129,1752912640711,-151.0,0.00016606,2]
[373222130,1752912640720,-625.0,0.00016606,2]
[373222131,1752912640730,-151.0,0.00016606,2]
[373222132,1752912640741,-151.0,0.00016606,2]
[373222133,1752912640750,-151.0,0.00016606,2]
[373222134,1752912640760,-151.0,0.00016606,2]
[373222135,1752912640771,-151.0,0.00016606,2]
[373222136,1752912640781,-151.0,0.00016606,2]
[373222137,1752912640790,-151.0,0.00016606,2]
[373222138,1752912640800,-151.0,0.00016606,2]
[373222139,1752912640810,-151.0,0.00016606,2]
[373222140,1752912640820,-151.0,0.00016606,2]
[373222141,1752912640829,-151.0,0.00016606,2]
[373222142,1752912640839,-500.0,0.00016606,2]
[373222143,1752912640849,-151.0,0.00016606,2]
[373222144,1752912640859,-500.0,0.00016606,2]
[373222145,1752912640868,-151.79719452,0.00016606,2]
[373222146,1752912640878,-383.17,0.00016858,3]
[373222147,1752912640887,-191.58,0.00016858,3]
[373222148,1752912640897,-191.58,0.00016858,3]
[373222149,1752912640907,-460.0,0.00016867,2]
[373222150,1752912640916,-460.0,0.00016867,2]
[373222151,1752912640925,-460.0,0.00016867,2]
[373222152,1752912640935,-524.87,0.00016867,2]
[373222153,1752912640944,-460.0,0.00016867,2]
[373222154,1752912640955,-460.0,0.00016867,2]
[373222155,1752912640964,-1128.74,0.00016867,2]
[373222157,1752912640974,-1784.08,0.00016867,2]
[373222159,1752912640984,-320.01537501,0.00016867,2]
[373222160,1752912640994,-460.0,0.00016867,2]
[373222161,1752912641004,-460.0,0.00016867,2]
[373222162,1752912641015,-460.0,0.00016867,2]
[373222163,1752912641026,-1218.46,0.00016867,2]
[373222164,1752912641036,-460.0,0.00016867,2]
[373222165,1752912641046,-460.0,0.00016867,2]
[373222166,1752912641055,-463.18,0.00016867,2]
[373222167,1752912641066,-460.0,0.00016867,2]
[373222168,1752912641076,-460.0,0.00016867,2]
[373222169,1752912641085,-460.0,0.00016867,2]
[373222170,1752912641095,-460.0,0.00016867,2]
[373222171,1752912641105,-542.18,0.00016867,2]
[373222172,1752912641115,-460.0,0.00016867,2]
[373222173,1752912641124,-460.0,0.00016867,2]
[373222174,1752912641134,-460.0,0.00016867,2]
[373222175,1752912641143,-460.0,0.00016867,2]
[373222176,1752912641154,-460.0,0.00016867,2]
[373222177,1752912641163,-1453.91,0.00016867,2]
[373222178,1752912641173,-460.0,0.00016867,2]
[373222179,1752912641182,-3990.44,0.00016867,2]
[373222180,1752912641192,-460.0,0.00016867,2]
[373222181,1752912641202,-460.0,0.00016867,2]
[373222182,1752912641212,-743.31,0.00016867,2]
[373222183,1752912641222,-460.0,0.00016867,2]
[373222184,1752912641232,-460.0,0.00016867,2]
[373222185,1752912641242,-371.08042624,0.00016867,2]
[373222186,1752912641251,-460.0,0.00016867,2]
[373222187,1752912641261,-1812.36,0.00016867,2]
[373222188,1752912641271,-2422.91,0.00016867,2]
[373222189,1752912641281,-2142.1,0.00016867,2]
[373222190,1752912641291,-460.0,0.00016868,2]
[373222191,1752912641300,-460.0,0.00016868,2]
[373222192,1752912641311,-460.0,0.00016868,2]
[373222193,1752912641320,-460.0,0.00016868,2]
[373222194,1752912641330,-460.0,0.00016868,2]
[373222195,1752912641339,-460.0,0.00016868,2]
[373222196,1752912641349,-460.0,0.00016868,2]
[373222197,1752912641359,-460.0,0.00016868,2]
[373222198,1752912641369,-280.48582985,0.00016868,2]
[373222199,1752912641378,-460.0,0.00016868,2]
[373222200,1752912641389,-360.55199838,0.00016868,2]
[373222201,1752912641399,-460.0,0.00016868,2]
[373222202,1752912641409,-460.0,0.00016868,2]
[373222203,1752912641418,-460.0,0.00016868,2]
[373222204,1752912641428,-460.0,0.00016868,2]
[373222205,1752912641437,-460.0,0.00016868,2]
[373222206,1752912641448,-460.0,0.00016868,2]
[373222207,1752912641457,-460.0,0.00016868,2]
[373222208,1752912641467,-460.0,0.00016868,2]
[373222209,1752912641477,-460.0,0.00016868,2]
[373222210,1752912641487,-460.0,0.00016868,2]
[373222211,1752912641497,-460.0,0.00016868,2]
[373222212,1752912641506,-460.0,0.00016868,2]
[373222213,1752912641517,-460.0,0.00016868,2]
[373222214,1752912641527,-513.15584719,0.00016868,2]
[373222215,1752912641537,-460.0,0.00016868,2]
[373222216,1752912641547,-460.0,0.00016868,2]
[373222217,1752912641557,-460.0,0.00016868,2]
[373222218,1752912641566,-460.0,0.00016868,2]
[373222219,1752912641577,-460.0,0.00016868,2]
[373222220,1752912641587,-460.0,0.00016868,2]
[373222221,1752912641596,-302.53767997,0.00016868,2]
[373222222,1752912641606,-460.0,0.00016868,2]
[373222223,1752912641616,-458.13600097,0.00016868,2]
[373222224,1752912641625,-460.0,0.00016868,2]
[373222225,1752912641635,-460.0,0.00016868,2]
[373222226,1752912641645,-460.0,0.00016868,2]
[373222227,1752912641655,-460.0,0.00016868,2]
[373222228,1752912641665,-460.0,0.00016868,2]
[373222229,1752912641675,-460.0,0.00016868,2]
[373222230,1752912641685,-460.0,0.00016868,2]
[373222231,1752912641697,-460.0,0.00016868,2]
[373222232,1752912641707,-460.0,0.00016868,2]
[373222233,1752912641717,-460.0,0.00016868,2]
[373222234,1752912641727,-435.64467231,0.00016868,2]
[373222235,1752912641739,-460.0,0.00016868,2]
[373222236,1752912641748,-769.57,0.00016868,2]
[373222237,1752912641759,-460.0,0.00016868,2]
[373222238,1752912641771,-460.0,0.00016868,2]
[373222239,1752912641782,-460.0,0.00016868,2]
[373222240,1752912641792,-292.27343318,0.00016868,2]
[373222241,1752912641802,-460.0,0.00016868,2]
[373222242,1752912641812,-460.0,0.00016868,2]
[373222243,1752912641822,-460.0,0.00016868,2]
[373222244,1752912641832,-575.82,0.00016868,2]
[373222245,1752912641842,-460.0,0.00016868,2]
[373222246,1752912641852,-460.0,0.00016868,2]
[373222247,1752912641863,-460.0,0.00016868,2]
[373222248,1752912641872,-460.0,0.00016868,2]
[373222249,1752912641882,-1093.29,0.00016868,2]
[373222250,1752912641893,-460.0,0.00016868,2]
[373222251,1752912641903,-460.0,0.00016868,2]
[373222252,1752912641913,-460.0,0.00016868,2]
[373222253,1752912641922,-460.0,0.00016868,2]
[373222254,1752912641932,-460.0,0.00016868,2]
[373222255,1752912641942,-460.0,0.00016868,2]
[373222256,1752912641953,-1411.72,0.00016868,2]
[373222257,1752912641962,-460.0,0.00016868,2]
[373222258,1752912641972,-460.0,0.00016868,2]
[373222259,1752912641982,-460.0,0.00016868,2]
[373222260,1752912641991,-460.0,0.00016868,2]
[373222261,1752912642001,-905.72,0.00016868,2]
[373222262,1752912642011,-460.0,0.00016868,2]
[373222263,1752912642021,-460.0,0.00016868,2]
[373222264,1752912642031,-460.0,0.00016868,2]
[373222265,1752912642041,-460.0,0.00016868,2]
[373222266,1752912642051,-460.0,0.00016868,2]
[373222267,1752912642061,-460.0,0.00016868,2]
[373222268,1752912642071,-743.82,0.00016868,2]
[373222269,1752912642080,-954.84,0.00016868,2]
[373222270,1752912642090,-550.48,0.00016868,2]
[373222271,1752912642100,-460.0,0.00016868,2]
[373222272,1752912642109,-460.0,0.00016868,2]
[373222273,1752912642235,-591.18,0.00016868,2]
[373222274,1752912642245,-460.0,0.00016869,2]
[373222275,1752912642256,-411.8078171,0.00016869,2]
[373222276,1752912642265,-460.0,0.00016869,2]
[373222277,1752912642275,-460.0,0.00016869,2]
[373222278,1752912642284,-460.0,0.00016869,2]
[373222279,1752912642294,-460.0,0.00016869,2]
[373222280,1752912642304,-460.0,0.00016869,2]
[373222281,1752912642314,-254.29528754,0.00016869,2]
[373222282,1752912642323,-460.0,0.00016869,2]
[373222283,1752912642334,-446.76394229,0.00016869,2]
[373222284,1752912642343,-460.0,0.00016869,2]
[373222285,1752912642353,-460.0,0.00016869,2]
[373222286,1752912642362,-460.0,0.0001687,2]
[373222287,1752912642371,-217.7196317,0.0001687,2]
[373222288,1752912642380,-460.0,0.0001687,2]
[373222289,1752912642390,-460.0,0.0001687,2]
[373222290,1752912642399,-460.0,0.0001687,2]
[373222291,1752912642410,-460.0,0.0001687,2]
[373222292,1752912642420,-463.910739,0.0001687,2]
[373222293,1752912642430,-460.0,0.0001687,2]
[373222294,1752912642440,-460.0,0.0001687,2]
[373222295,1752912642450,-460.0,0.0001687,2]
[373222296,1752912642460,-460.0,0.0001687,2]
[373222297,1752912642470,-460.0,0.0001687,2]
[373222298,1752912642479,-460.0,0.0001687,2]
[373222299,1752912642490,-460.0,0.00016871,2]
[373222300,1752912642499,-421.64675514,0.00016871,2]
[373222301,1752912642509,-270.97257431,0.00016871,2]
[373222302,1752912642519,-396.26883473,0.00016871,2]
[373222303,1752912642529,-460.0,0.00016871,2]
[373222304,1752912642538,-194.25,0.00016871,2]
[373222305,1752912642548,-460.0,0.00016871,2]
[373222306,1752912642558,-460.0,0.00016871,2]
[373222307,1752912642567,-460.0,0.00016871,2]
[373222308,1752912642577,-520.12,0.00016871,2]
[373222309,1752912642586,-460.0,0.00016871,2]
[373222310,1752912642596,-460.0,0.00016871,2]
[373222311,1752912642606,-460.0,0.00016872,2]
[373222312,1752912642615,-500.0,0.0001688,2]
[373222313,1752912642625,-151.0,0.0001688,2]
[373222314,1752912642634,-151.0,0.0001688,2]
[373222315,1752912642643,-151.31227514,0.0001688,2]
[373222316,1752912642653,-257.47516588,0.0001688,2]
[373222317,1752912642663,-625.0,0.0001688,2]
[373222318,1752912642672,-151.0,0.0001688,2]
[373222319,1752912642682,-151.0,0.0001688,2]
[373222320,1752912642694,-151.92937431,0.0001688,2]
[373222321,1752912642707,-151.0,0.0001688,2]
[373222322,1752912642716,-151.0,0.0001688,2]
[373222323,1752912642726,-151.0,0.0001688,2]
[373222324,1752912642736,-151.42852709,0.0001688,2]
[373222325,1752912642746,-151.0,0.0001688,2]
[373222326,1752912642756,-151.0,0.0001688,2]
[373222327,1752912642765,-151.48400764,0.0001688,2]
[373222328,1752912642776,-500.0,0.0001688,2]